Cogmind - Beta 13 @@@ ROGUE MODE // 2024.04.21 @ 07:49:24 Player: Zaros426 Result: Destroyed by 4Z-48Q(R) with Subdweller Machine Gun Performance ------------- Evolutions (0) 0 Regions Visited (2) 400 Robots Destroyed (34) 170 Value Destroyed (681) 681 Prototype IDs (3) 60 Alien Tech Used (0) 0 Bonus (0) 0 TOTAL SCORE: 1311 Bonus ------- None Cogmind --------- Core Integrity 0/250 Matter 64/300 Energy 250/250 System Corruption 0% Temperature Cool (0) Movement Treading (160) Location -10/Subcaves Parts ------- > --- POWER (1) -------- Ion Engine > --- PROPULSION (2) --- Light Treads Light Treads > --- UTILITY (2) ------ Scrap Shield > --- WEAPON (2) ------- Barrage Gun Battle Cannon > --- INVENTORY (5) ---- Ion Engine Small Storage Unit Improved Terrain Scanner Seismic Detector Light Armor Plating Peak State ------------ > --- POWER ------------ Ion Engine > --- PROPULSION ------- Light Treads Light Treads > --- UTILITY ---------- Scrap Shield > --- WEAPON ----------- Barrage Gun Battle Cannon > --- INVENTORY -------- Ion Engine Small Storage Unit Improved Terrain Scanner Seismic Detector Light Armor Plating [Rating: 12] Favorites ----------- Power Ion Engine Engine Ion Engine Propulsion Light Treads Treads Light Treads Leg Aluminum Leg Utility Light Armor Plating Device Seismic Detector Storage Small Storage Unit Processor Targeting Computer Protection Light Armor Plating Weapon Light Cannon Energy Gun Small Laser Ballistic Gun Barrage Gun Ballistic Cannon Light Cannon Build | -11 -10 -10 ------- Run | Yrd Mat Sub Slots Evolved . | . . . Power . | . . . Propulsion . | . . . Utility . | . . . Weapon . | . . . Parts Attached 24 | 7 9 8 Power 2 | 1 1 . Engine 2 | 1 1 . Core . | . . . Reactor . | . . . Propulsion 8 | 2 4 2 Treads 4 | . 2 2 Leg 4 | 2 2 . Wheel . | . . . Hover . | . . . Flight . | . . . Utility 8 | 2 2 4 Device 1 | 1 . . Storage 1 | 1 . . Processor 1 | . 1 . Hackware . | . . . Protection 5 | . 1 4 Artifact . | . . . Weapon 6 | 2 2 2 Energy Gun 1 | . 1 . Energy Cannon . | . . . Ballistic Gun 3 | 2 . 1 Ballistic Cannon 2 | . 1 1 Launcher . | . . . Special Weapon . | . . . Impact Weapon . | . . . Slashing Weapon . | . . . Piercing Weapon . | . . . Special Melee Weapon . | . . . Unidentified Prototypes . | . . . Parts Lost 3 | . 2 1 Power . | . . . Propulsion . | . . . Utility 1 | . 1 . Weapon 2 | . 1 1 Highest Loss Streak 2 | . 2 1 To Critical Strikes . | . . . Average Slot Usage (%) 91 | . 92 91 Engine 14 | . 14 14 Treads 18 | . 7 27 Leg 9 | . 20 . Device 1 | . 2 . Storage 9 | . 14 4 Processor 1 | . 2 . Protection 11 | . 1 19 Energy Gun 4 | . 8 1 Ballistic Gun 9 | . 12 7 Ballistic Cannon 11 | . 7 14 Naked Turns . | . . . Heaviest Build 29 | 14 17 29 Greatest Support 40 | 20 40 40 Greatest Overweight (x) . | . . . Average Overweight (x) . | . . . Largest Inventory Capacity 8 | 8 8 8 Average Capacity 6 | 6 8 6 Most Carried 8 | 4 8 8 Average Carried 6 | 2 6 6 Final Capacity 8 | 8 8 5 Final Carried 8 | 4 8 5 Class Distribution -------------------- 100% | Mutant Dominant Class ---------------- Mutant | -10/Materials Mutant | -10/Subcaves Resources | -11 -10 -10 ----------- Run | Yrd Mat Sub Matter Collected 1016 | 223 501 292 Remotely . | . . . Salvage Created 841 | 38 689 114 Parts 65 | 4 54 7 Haulers Intercepted 2 | . 2 . Recyclers Shooed 2 | . 2 . Parts Field Recycled . | . . . Retrieved Matter . | . . . Parts Self-Destructed 9 | . . 9 Prevented . | . . . Kills | -11 -10 -10 ------- Run | Yrd Mat Sub Combat Hostiles Destroyed 20 | . 11 9 Guns 9 | . 9 . Cannons 11 | . 2 9 Classes Destroyed 10 | 1 8 1 Worker 4 | . 4 . Builder 2 | . 2 . Tunneler 2 | 2 . . Hauler 2 | . 2 . Recycler 1 | . 1 . Operator 1 | . 1 . Watcher 2 | . 2 . Swarmer 6 | . 3 3 Grunt 8 | . 8 . Subdweller 6 | . . 6 Best Kill Streak 4 | 2 4 2 Combat Bots Only 2 | . 2 2 Max Kills in Single Turn 2 | 1 2 1 Gunslinging . | . . . Exploded . | . . . Melee . | . . . Uniques/NPCs Destroyed . | . . . Combat | -11 -10 -10 -------- Run | Yrd Mat Sub Hostile Shots Fired 176 | . 83 93 Missed 65 | . 28 37 Damage Taken 1587 | . 560 1027 Core 265 | . 104 161 Absorbed by Shields . | . . . Core Remaining (%) 100 | 100 . . Volleys Fired 230 | 8 125 97 Largest 2 | 2 2 2 Hottest 75 | 40 60 75 Shots Fired 310 | 16 185 109 Gun 185 | 16 155 14 Cannon 125 | . 30 95 Launcher . | . . . Special . | . . . Kinetic 272 | 16 152 104 Thermal 38 | . 33 5 Explosive . | . . . Electromagnetic . | . . . Robot Hit Streak 10 | 8 10 7 Robot Miss Streak 6 | 1 6 3 Penetration Max . | . . . Secondary Targets 2 | . 2 . Max Gunslinging Chain 1 | . 1 . Shots Hit Robots 163 | 11 100 52 Core Hits 53 | 3 37 13 Critical Kills . | . . . Critical Parts Destroyed . | . . . Critical Strikes 2 | . 1 1 Blast 2 | . 1 1 Melee Attacks . | . . . Impact . | . . . Slashing . | . . . Piercing . | . . . Sneak Attacks . | . . . Combat Hostiles . | . . . Follow-up Attacks . | . . . Damage Inflicted 2301 | 142 1161 998 Guns 1100 | 142 867 91 Cannons 1201 | . 294 907 Explosions . | . . . Melee . | . . . Ramming . | . . . Kinetic 2147 | 142 1018 987 Thermal 154 | . 143 11 Explosive . | . . . Electromagnetic . | . . . Impact . | . . . Slashing . | . . . Piercing . | . . . Highest Corruption . | . . . Average Corruption . | . . . Corruption Purged . | . . . Corruption Blocked . | . . . Overload Shots . | . . . Overflow Damage 26 | . 6 20 Projectiles 26 | . 6 20 Explosions . | . . . Melee . | . . . Knockbacks 12 | . 4 8 Impact . | . . . Kinetic 10 | . 3 7 Secondary 2 | . 1 1 Self-Inflicted Damage . | . . . Shots . | . . . Rammed . | . . . Targets Rammed . | . . . Kicked . | . . . Crushed . | . . . Highest Temperature 56 | . 56 . Average Temperature 13 | . 13 . Received Heat Transfer 378 | . 222 156 Siege Activations . | . . . Robots Corrupted . | . . . Combat Hostiles . | . . . Parts Fried . | . . . Impact Corruptions . | . . . Robots Melted . | . . . Combat Hostiles . | . . . Parts Melted . | . . . Heat Transferred 350 | . 325 25 Parts Sabotaged . | . . . Parts Stolen . | . . . Parts Stripped . | . . . Power Chain Reactions . | . . . Alert | -11 -10 -10 ------- Run | Yrd Mat Sub Peak Influence 159 | 10 159 . Initial 6 | . 6 . Average 53 | 3 57 . Maximum Alert Level . | . . . Low Security (%) 100 | 100 100 . Level 1 . | . . . Level 2 . | . . . Level 3 . | . . . Level 4 . | . . . Level 5 . | . . . High Security . | . . . Max Security . | . . . Squads Dispatched 3 | . 3 . Investigation 2 | . 2 . Extermination . | . . . Reinforcement 1 | . 1 . Assault . | . . . Garrison . | . . . Intercept . | . . . Searches Triggered . | . . . Construction Impeded . | . . . Haulers Reinforced . | . . . Active Scanning Responses . | . . . Cargo Convoy Interrupts . | . . . Stealth | -11 -10 -10 --------- Run | Yrd Mat Sub Distress Signals 1 | . 1 . Communications Jammed . | . . . Distress Signals . | . . . Times Spotted 40 | . 23 17 Peak Tracking Total 5 | . 3 5 Tactical Retreats 7 | . 2 5 Traps | -11 -10 -10 ------- Run | Yrd Mat Sub Traps Triggered 7 | . 2 5 Indirectly . | . . . Trap Hack Attempts . | . . . Triggered . | . . . Disarmed . | . . . Reprogrammed . | . . . Reused . | . . . Traps Extracted . | . . . Installed . | . . . Triggered . | . . . Machines | -11 -10 -10 ---------- Run | Yrd Mat Sub Machines Disabled 1 | . 1 . Max in Single Turn 1 | . 1 . Machines Repaired . | . . . Machines Dismantled . | . . . Machines Sabotaged . | . . . Overloaded Fab Kills . | . . . Hacking | -11 -10 -10 --------- Run | Yrd Mat Sub Machines Accessed 7 | . 7 . Terminals 7 | . 7 . Fabricators . | . . . Repair Stations . | . . . Recycling Units . | . . . Scanalyzers . | . . . Garrison Access . | . . . Total Hacks 15 | . 15 . Successful 5 | . 5 . Failed 10 | . 10 . Catastrophic 1 | . 1 . Database Lockouts . | . . . Manual 9 | . 9 . Terminals 15 | . 15 . Fabricators . | . . . Repair Stations . | . . . Recycling Units . | . . . Scanalyzers . | . . . Garrison Access . | . . . Terminal Hacks 5 | . 5 . Robot Analysis 2 | . 2 . Prototype ID Bank 2 | . 2 . Zone Layout 1 | . 1 . Fabricator Hacks . | . . . Repair Station Hacks . | . . . Recycling Unit Hacks . | . . . Scanalyzer . | . . . Garrison Access Hacks . | . . . Unauthorized Hacks . | . . . Terminals . | . . . Fabricators . | . . . Repair Stations . | . . . Recycling Units . | . . . Scanalyzers . | . . . Garrison Access . | . . . Data Cores Recovered . | . . . Used . | . . . Hacking Detections 5 | . 5 . Full Trace Events 1 | . 1 . Feedback Events . | . . . Feedback Blocked . | . . . Robot Schematics Acquired . | . . . Robots Built . | . . . Authchips . | . . . Time . | . . . Total Robot Build Rating . | . . . Part Schematics Acquired . | . . . Parts Built . | . . . Authchips . | . . . Time . | . . . Total Part Build Rating . | . . . Parts Repaired . | . . . Time . | . . . Parts Recycled . | . . . Recycled Matter . | . . . Retrieved Matter . | . . . Retrieved Components . | . . . Parts Scanalyzed . | . . . Part Schematics Acquired . | . . . Parts Damaged . | . . . Bothacking | -11 -10 -10 ------------ Run | Yrd Mat Sub Used RIF Installer . | . . . Robots Hacked . | . . . Non-combat . | . . . Combat . | . . . Robot Hacks Applied . | . . . Relay Couplers Released . | . . . Fabnet Peak Effective % . | . . . Robots Rewired . | . . . Allies Hacked . | . . . Hacks Repelled . | . . . Allies | -11 -10 -10 -------- Run | Yrd Mat Sub Total Allies . | . . . Largest Group . | . . . Highest-Rated Group . | . . . Highest-Rated Ally . | . . . Total Orders . | . . . Ally Attacks . | . . . Total Damage . | . . . Kills . | . . . Allies Corrupted . | . . . Allies Melted . | . . . Intel | -11 -10 -10 ------- Run | Yrd Mat Sub Robot Analysis Total 2 | . 2 . Derelict Logs Recovered 1 | . . 1 Drone Launches . | . . . Drone Recoveries . | . . . Exploration | -11 -10 -10 ------------- Run | Yrd Mat Sub Turns Passed 3927 | 117 1721 2089 Spaces Moved 2291 | 67 1064 1160 Core 12 | 12 . . Treads 1327 | . 195 1132 Legs 952 | 55 869 28 Wheels . | . . . Hover . | . . . Flight . | . . . Fastest Speed 50 | 50 120 120 Average Speed 142 | 107 127 159 Slowest Speed 160 | 120 160 160 Overloaded Moves . | . . . Propulsion Burnouts . | . . . Robots Hopped . | . . . Cave-ins Triggered . | . . . Exploration Rate (%) 53 | 4 99 57 Regions Visited 2 Branch Regions 1 Pre-discovered Areas 1 | . . 1 Known Exits Taken . | . . . Unknown Exits Taken 2 | 1 1 . Scrap Searched 1 | . . 1 Spaces Dug . | . . . Terrain Destroyed 1 | . . 1 Melee . | . . . Projectile 1 | . . 1 AOE . | . . . Terrain Rammed . | . . . Walls Destroyed . | . . . Machines Disabled . | . . . Actions | -11 -10 -10 --------- Run | Yrd Mat Sub Total 2647 | 94 1258 1295 Wait 76 | 9 46 21 Move 2289 | 66 1063 1160 Hop . | . . . Pick Up 13 | 4 9 . Fast Attach 12 | 7 2 3 Attach . | . . . Detach . | . . . Swap 12 | . 7 5 Drop 12 | . 6 6 Fire 230 | 8 125 97 Melee . | . . . Ram . | . . . Kick . | . . . Crush . | . . . Escape Stasis . | . . . Rewire . | . . . Trap . | . . . Miscellaneous 3 | . . 3 Route ------- -11/Scrapyard -10/Materials (discovered 6 exits: [*Mat x3] / [*Min x2] / [*Sub]) -10/Subcaves (discovered 1 exit: [*Mat]) History --------- Turn | Location | Event 11 | -11/Scrapyard | Discovered new exit (range 15) 118 | -11/Scrapyard | Entered Materials 284 | -10/Materials | Discovered new exit (range 15) 309 | -10/Materials | Build established: Mutant 326 | -10/Materials | Discovered new exit (range 13) 652 | -10/Materials | Discovered new exit (range 15) 978 | -10/Materials | Discovered new exit (range 9) 1087 | -10/Materials | Discovered new exit (range 12) 1836 | -10/Materials | Discovered new exit (range 3) 1839 | -10/Materials | Entered Subcaves 2069 | -10/Subcaves | Core integrity fell below 50% 2111 | -10/Subcaves | Learned location of Zion (-6) 2869 | -10/Subcaves | Shifting Twisted Machinery released Sub. Machine Gun 2870 | -10/Subcaves | Shifting Twisted Machinery released Flamer 2919 | -10/Subcaves | Discovered new exit (range 10) 3330 | -10/Subcaves | Core integrity fell below 20% 3928 | -10/Subcaves | Destroyed by 4Z-48Q(R) with Subdweller Machine Gun Last Messages --------------- 03329_ Triggered Shrapnel Trap. 03329_ An expanding cloud of shrapnel blasts out in all directions. 03378_ 27-IR6(R) destroyed. 03382_ Dropped Lgt. Armor Plating. 03384_ Acquired Scrap Shield. 03385_ Acquired 5 matter. 03387_ Acquired 1 matter. 03388_ Subatomizers dissect the Sub. Machine Gun. 03388_ Acquired 28 matter. 03396_ Scrap Shield Fragment affixed to Scrap Shield (+20). 03402_ Searching scrap... 03402_ Found Sub. Laser. 03402_ Found 16 Matter. 03403_ Acquired 16 matter. 03436_ Subatomizers dissect the Sub. Machine Gun. 03446_ Subatomizers dissect the Lgt. Armor Plating. 03461_ Triggered Shrapnel Trap. 03461_ An expanding cloud of shrapnel blasts out in all directions. 03690_ Scrap Shield Fragment affixed to Scrap Shield (+45). 03710_ Scrap Shield Fragment affixed to Scrap Shield (+25). Map ----- +----------------------------------------------------+ | ????????????????????????????### ## #####??? | | ??????????????????????????????## ##### #??? | | ???????????????????????????????###???## ##?? | | ????????????????????????????####??????## #?? | | ???????????????????????????## ####????# ### | | ????????????? ??????##?????# ##???# | | ????????????? ????# #??### ##### | | ????????????? ### ### ## | | ???????????? | | ???????????? | | ???????????? # | | ?????????????????### #### | | ???????????????????####### ## #?## | | ????????????????????###?## ### ### | | ????????????????????# ## ##?# ## | | ????????????????????# #### ##?# ## | | ????????????????????## ############ ### ## | | ?????????????????????### ### ## ######?## ## | | ??????????????????????## ## #####??#### | | ?????????????????????## ### ##???# | | ????????????????????## #?## ##?## | | ????????????????????# ########### #?# | | ?????????????#??????#%R##"""#?????# #### | | ?????????????# ????# ""##??#### ### | | ?????????????# ???#" " #??# | | ?????????????# ###"" #@ ##??# | | ?????????????# ""## #??## | | ???????????????# "" #???#" ## | | ???????????????## " ##??#" ## ## | | ????????????????# "" "#??## #### | | ????????????????# ### #####???## #??# # | | ????????????????# #??###????????## #?# ## | | ????????????????####???????????????#####?# #? | | ?????????????????????????????????????????########? | | ?????????????????????????????????????????????????? | | ?????????????????????????????????????????????????? | | ?????????????????????????????????????????????????? | | ?????????????????????????????????????????????????? | | ?????????????????????????????????????????????????? | | ?????????????????????????????????????????????????? | | ?????????????????????????????????????????????????? | | ?????????????????????????????????????????????????? | | ?????????????????????????????????????????????????? | | ?????????????????????????????????????????????????? | | ?????????????????????????????????????????????????? | | ?????????????????????????????????????????????????? | | ?????????????????????????????????????????????????? | | ?????????????????????????????????????????????????? | | | | | +----------------------------------------------------+ Best States ------------- Heat Dissipation 25 Energy Generation 10 Energy Capacity 250 Matter Stores 300 Matter Capacity 300 Sight Range 16 Terrain Scan Density 10 Armor Coverage 800 Evasion (%) 55 Targeting Accuracy 5 Recoil Reduction 2 Item Schematics ----------------- None Robot Schematics ------------------ None Fabricated ------------ Nothing Alien Tech Used ----------------- None Achievements -------------- None Challenges ------------ None Game ------ Seed ChromaticEtherialSource Manual? 0 Play Time 00:23:01 Cumulative 62.7 hours Start 2024.04.21 @ 07:26:28 End 2024.04.21 @ 07:49:24 Sessions 1 Manual Loads 0 Difficulty Rogue Special Mode None Game No. 68 Rogue 68 Adventurer 0 Explorer 0 Win Type - Total 0 Types 0/0/0/0/0/0/0/0/0 Lore% 31 Gallery% 48 Achievement% 32 Wizard Run 0 Options --------- Layout 0 ASCII 0 Keyboard 0 Movement Mouse Keybinds 0 Fullscreen 2 Font 24/Smallcaps Map View 183x50 Zoom Use 0% Tactical HUD 1 Map Filters NONE Filters NONE Steam 0 RUN: b03f4ddc-5582-484e-9aec-2ba16e494e3b